bitfinex/quotes_ETHUSD_20240825
["timestamp","ask_amount","ask_price","bid_price","bid_amount"]
[1724601333625,2.3681,2767.1,2766.5,3.61456]
[1724601333820,2.3681,2767.1,2766.5,7.22916]
[1724601334020,2.3681,2767.1,2766.5,3.61456]
[1724601334223,2.3681,2767.1,2766.6,3.61448]
[1724601335064,2.3681,2767.1,2766.7,3.61439]
[1724601335586,1.51499524,2767.3,2767.2,3.61376]
[1724601335728,1.51499524,2767.3,2767.1,3.61378]
[1724601335929,1.51499524,2767.3,2767.0,3.61401]
[1724601336938,2.3681,2767.7,2767.0,3.61401]
[1724601337245,2.3681,2767.7,2766.9,2.3052]
[1724601337246,4.54044027,2767.7,2767.1,3.61388]
[1724601337579,2.3681,2767.7,2767.1,3.61388]
[1724601348219,5.98121,2767.7,2767.1,3.61388]
[1724601350493,2.3681,2767.7,2767.1,3.61388]
[1724601352122,5.98121,2767.7,2767.1,3.61388]
[1724601354726,5.98121,2767.7,2767.1,7.22769]
[1724601354922,5.98121,2767.7,2766.9,2.3052]
[1724601354923,2.3681,2767.7,2766.9,2.3052]
[1724601355126,7.46,2767.8,2767.4,3.61338]
[1724601355421,2.3364,2767.9,2767.3,2.3963]
[1724601355615,2.3364,2768.1,2767.6,3.61313]
[1724601356239,7.46,2768.3,2767.7,2.3963]
[1724601356547,7.46,2768.3,2767.9,3.61276]
[1724601356720,2.3364,2768.4,2767.9,3.61276]
[1724601356934,2.3364,2768.4,2767.7,2.3963]
[1724601356935,2.3364,2768.4,2768.0,3.6127]
[1724601357132,5.12672524,2768.8,2768.0,3.6127]
[1724601357133,2.3364,2768.7,2768.0,3.6127]
[1724601357377,2.3364,2768.7,2768.3,3.61231]
[1724601357580,2.3364,2768.7,2768.2,3.61237]
[1724601357581,3.31604,2768.7,2768.2,3.61237]
[1724601357859,3.31604,2768.7,2768.3,3.6123]
[1724601358416,2.3364,2768.7,2768.3,3.6123]
[1724601358658,8.72415292,2768.9,2768.4,3.61217]
[1724601358955,3.60055292,2768.9,2768.4,3.61217]
[1724601359366,2.3364,2768.9,2768.4,3.61217]
[1724601360220,1.26415292,2768.8,2768.2,3.61235]
[1724601360421,0.72121129,2768.7,2768.2,3.61235]
[1724601361259,0.72121129,2768.7,2768.3,3.61231]
[1724601361426,1.26415292,2768.6,2768.3,3.61231]
[1724601363333,1.26415292,2768.6,2768.1,3.61255]
[1724601363539,3.54655292,2768.4,2768.1,3.61255]
[1724601364122,2.2824,2768.4,2768.1,3.61255]
[1724601364323,7.15835292,2768.7,2768.1,7.22504]
[1724601364547,3.54655292,2768.7,2768.2,3.61243]
[1724601366562,2.2824,2768.7,2768.2,3.61243]
[1724601366964,2.2824,2768.7,2768.3,3.61232]
[1724601367159,3.54655292,2768.7,2768.3,3.61232]
[1724601368383,2.2824,2768.7,2768.5,3.61205]
[1724601368583,1.26415292,2768.9,2768.5,3.61205]
[1724601369800,1.26415292,2768.7,2768.3,4.334691]
[1724601369962,1.26415292,2768.7,2768.3,7.22445]
[1724601370719,1.26415292,2768.7,2768.4,3.61219]
[1724601371607,1.26415292,2768.7,2768.3,3.61221]
[1724601371807,1.26415292,2768.5,2767.9,3.61282]
[1724601371992,1.26415292,2768.3,2767.9,7.22558]
[1724601372194,1.26415292,2768.3,2767.9,3.61276]
[1724601372381,1.26415292,2768.3,2767.9,7.22552]
[1724601372582,1.26415292,2768.3,2768.0,3.6127]
[1724601373196,1.26415292,2768.5,2768.1,3.61256]
[1724601373971,2.2825,2768.6,2768.1,3.61256]
[1724601375074,2.2825,2768.6,2768.0,3.61271]
[1724601375274,3.617939,2768.6,2768.0,3.61271]
[1724601375476,3.617939,2768.6,2768.1,3.61258]
[1724601375477,2.2825,2768.6,2768.1,3.61258]
[1724601376388,2.2825,2768.6,2768.3,3.61228]
[1724601377885,2.2825,2768.6,2768.2,3.61244]
[1724601378086,2.2825,2768.6,2767.9,3.61274]
[1724601378286,3.61213,2768.5,2767.9,3.61274]
[1724601378499,5.46028052,2768.5,2767.9,3.61274]
[1724601378822,5.46028052,2768.5,2767.7,3.61304]
[1724601378823,2.4364,2768.4,2767.7,3.61304]
[1724601379327,3.6128,2768.0,2767.3,3.61355]
[1724601379629,2.4364,2767.9,2767.3,7.22708]
[1724601379785,2.4364,2767.9,2767.4,4.336168]
[1724601381285,2.4364,2767.9,2767.3,3.61353]
[1724601382521,3.61298,2767.8,2767.3,3.61353]
[1724601383242,2.4364,2767.9,2767.3,7.22706]
[1724601383459,2.4364,2767.9,2767.4,3.61348]
[1724601385970,6.04925,2767.9,2767.2,3.61365]
[1724601386136,6.04925,2767.9,2767.3,3.6136]
[1724601393937,2.4541,2767.6,2767.1,3.61379]
[1724601394240,6.06743,2767.6,2766.9,3.61408]
[1724601394440,3.61365,2767.3,2766.6,2.4911]
[1724601394693,2.4541,2767.4,2766.8,3.61427]
[1724601394827,2.4541,2767.4,2766.9,3.61411]
[1724601396621,2.4541,2767.4,2767.0,3.61399]
[1724601396825,1.51499524,2767.6,2767.0,3.61399]
[1724601396826,2.4541,2767.6,2767.0,3.61399]
[1724601397025,2.4541,2767.6,2767.2,3.61374]
[1724601398350,2.4541,2767.6,2767.0,3.975299]
[1724601398664,2.4541,2767.4,2766.8,7.22838]
[1724601399164,2.4541,2767.4,2766.8,7.2284]
[1724601399461,2.4541,2767.4,2766.9,3.6141]
[1724601403526,2.4541,2767.4,2767.0,3.614]
[1724601403733,2.413,2767.6,2767.0,3.614]
[1724601404026,2.413,2767.6,2767.1,0.96505]
[1724601404529,6.02632,2767.6,2767.1,0.96505]
[1724601405685,2.413,2767.6,2767.1,0.96505]
[1724601406090,6.02626,2767.6,2767.1,0.96505]
[1724601406240,2.413,2767.8,2767.1,0.96505]
[1724601406587,6.02605,2767.8,2767.2,3.61366]
[1724601408090,6.02605,2767.8,2767.2,7.22734]
[1724601409948,6.02605,2767.8,2767.2,7.22733]
[1724601410148,6.02605,2767.8,2767.2,3.61366]
[1724601414048,7.29117615,2767.8,2767.2,3.61366]
[1724601414248,7.29117615,2767.8,2767.2,4.336421]
[1724601414690,7.29117615,2767.8,2767.3,3.61361]
[1724601414691,2.413,2767.8,2767.3,3.61361]
[1724601414899,2.413,2767.8,2767.3,7.22223615]
[1724601415208,1.51050072,2768.0,2767.5,3.61325]
[1724601415419,1.51050072,2768.0,2767.6,3.61319]
[1724601415712,3.82530072,2768.1,2767.6,3.61319]
[1724601415912,9.34895191,2768.2,2767.6,3.61319]
[1724601415913,8.97050072,2768.2,2767.6,3.61319]
[1724601416076,8.97050072,2768.2,2767.6,6.55287538]
[1724601416758,1.51050072,2768.3,2767.9,3.61281]
[1724601416964,1.51050072,2768.4,2767.8,3.61285]
[1724601417177,1.51050072,2768.4,2767.9,3.6128]
[1724601418594,1.51050072,2768.3,2767.9,3.6128]
[1724601418771,1.51050072,2768.4,2768.0,6.678775]
[1724601420401,3.40067818,2768.5,2768.0,6.678775]
[1724601420590,1.51050072,2768.5,2768.0,6.678775]
[1724601421477,1.51050072,2768.4,2768.0,6.678775]
[1724601421662,1.51050072,2768.4,2768.1,0.6678775]
[1724601422096,1.51050072,2768.5,2768.1,0.6678775]
[1724601422271,1.51050072,2768.4,2768.1,0.6678775]
[1724601422682,5.50211746,2768.6,2768.1,0.6678775]
[1724601422683,1.51050072,2768.5,2768.1,0.6678775]
[1724601424501,1.51050072,2768.4,2768.1,0.6678775]
[1724601424800,1.51050072,2768.5,2768.1,0.6678775]
[1724601425016,1.51050072,2768.5,2768.2,0.73466525]
[1724601425214,1.51050072,2768.5,2768.0,6.678775]
[1724601425215,2.3942,2768.3,2768.0,4.335275]
[1724601425399,2.3942,2768.3,2768.0,3.61271]
[1724601430191,2.3942,2768.3,2767.8,3.61293]
[1724601431122,2.3942,2768.3,2767.6,4.20938538]
[1724601431286,3.90470072,2768.3,2767.6,4.20938538]
[1724601431482,2.3942,2768.3,2767.6,4.20938538]
[1724601431688,3.61248,2768.2,2767.6,7.82254538]
[1724601431899,3.61248,2768.2,2767.7,3.6131]
[1724601433594,3.90470072,2768.3,2767.8,3.61297]
[1724601433928,7.51702072,2768.3,2767.8,3.61297]
[1724601434630,2.3942,2768.3,2767.8,3.61297]
[1724601435401,2.3942,2768.3,2767.8,3.61289]
[1724601437251,2.3942,2768.3,2767.9,3.61282]
[1724601438499,2.39277563,2768.3,2767.9,3.61282]
[1724601438830,6.38733769,2768.4,2767.9,3.61282]
[1724601438831,4.87683697,2768.4,2767.9,3.61282]
[1724601440353,7.57612316,2768.4,2767.9,3.61282]
[1724601440863,1.26456697,2768.0,2767.8,3.61289]
[1724601441041,2.77506769,2768.2,2767.8,7.22578]
[1724601441202,1.26456697,2768.2,2767.8,7.22578]
[1724601441398,3.57136697,2768.2,2767.8,7.22578]
[1724601442267,5.08186769,2768.2,2767.8,7.22578]
[1724601444030,5.08186769,2768.2,2767.8,3.61289]
[1724601445690,3.57136697,2768.2,2767.8,3.61289]
[1724601445885,5.08186769,2768.2,2767.8,3.61289]
[1724601448903,1.51050072,2768.2,2767.8,3.61289]
[1724601449204,1.51050072,2768.2,2767.8,5.99449]
[1724601450917,1.47928172,2768.2,2767.8,5.99449]
[1724601451559,1.8897533,2768.3,2767.8,5.99449]
[1724601452470,1.8897533,2768.2,2767.8,5.99449]
[1724601452670,1.89072786,2768.2,2767.8,5.99449]
[1724601453205,1.89072786,2768.3,2767.8,5.99449]
[1724601453502,1.89072786,2768.2,2767.8,5.99449]
[1724601456489,1.89072786,2768.2,2767.6,3.61316]
[1724601456490,1.89072786,2768.1,2767.6,3.61316]
[1724601456662,3.61676697,2768.0,2767.6,3.61316]
[1724601458062,1.89130936,2768.1,2767.6,7.22632]
[1724601458907,1.51355286,2768.0,2767.7,3.6131]
[1724601459932,1.51355286,2767.9,2767.6,3.61316]
[1724601460104,2.77811983,2767.8,2767.6,3.61316]
[1724601460605,1.51355286,2767.7,2767.6,3.61316]
[1724601460806,2.77811983,2767.8,2767.6,3.61316]
[1724601462722,1.51355286,2767.8,2767.6,3.61316]
[1724601471874,1.51355286,2767.7,2767.4,7.22681]
[1724601472073,1.51355286,2767.7,2767.4,8.2215671]
[1724601472660,1.89174185,2767.9,2767.1,1.26456697]
[1724601472661,2.77811983,2767.6,2767.1,2.3048]
[1724601473074,1.51355286,2767.5,2767.1,2.3048]
[1724601474074,1.51355286,2767.5,2767.0,3.61397]
[1724601474384,1.51355286,2767.5,2767.2,3.61368]
[1724601475274,5.09261983,2767.6,2767.2,3.61368]
[1724601475475,6.18667103,2767.5,2767.0,3.61397]
[1724601475648,1.51355286,2767.4,2767.0,3.61397]
[1724601476055,1.51355286,2767.5,2767.0,3.61392]
[1724601476660,1.51355286,2767.5,2767.1,3.61387]
[1724601478518,5.09261983,2767.6,2767.1,3.61387]
[1724601479524,5.09261983,2767.6,2767.2,3.61373]
[1724601480778,5.09261983,2767.6,2767.0,3.61392]
[1724601481088,5.09261983,2767.6,2766.9,2.3048]
[1724601481089,1.51355286,2767.3,2766.9,2.3048]
[1724601481613,1.51355286,2767.2,2766.9,2.3048]
[1724601481830,1.51355286,2767.3,2766.9,2.3048]
[1724601482271,6.39169983,2767.4,2766.9,2.3048]
[1724601483815,6.39169983,2767.4,2766.9,5.91895]
[1724601485219,1.51355286,2767.3,2766.9,5.91895]
[1724601485436,6.39169983,2767.4,2766.9,5.91895]
[1724601488440,7.91843627,2767.4,2766.9,5.91895]
[1724601490306,6.39169983,2767.4,2766.9,5.91895]
[1724601492833,1.51355286,2767.4,2766.8,1.26456697]
[1724601493002,1.51355286,2767.6,2767.1,7.22759]
[1724601493202,1.51355286,2767.6,2767.2,3.61374]
[1724601494427,1.51355286,2767.6,2767.1,3.61388]
[1724601494622,1.26456697,2767.5,2767.1,3.61388]
[1724601494825,2.77811983,2767.5,2767.0,6.1002]
[1724601495030,1.26456697,2767.5,2767.0,10.685582]
[1724601495217,1.26456697,2767.5,2767.0,7.071582]
[1724601495417,1.26456697,2767.5,2767.0,10.685522]
[1724601495648,1.26456697,2767.5,2767.0,7.071582]
[1724601495806,1.26456697,2767.5,2767.0,7.071572]
[1724601496008,1.26456697,2767.5,2767.1,0.7071572]
[1724601496862,1.51355286,2767.6,2767.1,4.3210372]
[1724601497068,1.51355286,2767.6,2767.2,2.4862]
[1724601497579,6.39130983,2767.7,2767.2,6.09986]
[1724601497773,6.39130983,2767.7,2767.3,0.68070172]
[1724601497979,3.61319,2767.7,2767.3,0.68070172]
[1724601498181,1.26456697,2767.7,2767.3,0.68070172]
[1724601498377,12.95970944,2767.9,2767.4,2.4862]
[1724601498378,12.58644286,2767.9,2767.4,2.4862]
[1724601498541,1.51355286,2767.9,2767.5,6.09948]
[1724601498738,1.51355286,2768.0,2767.6,0.971293]
[1724601501182,8.73890286,2768.1,2767.6,0.971293]
[1724601501379,3.61274,2768.0,2767.6,0.971293]
[1724601501580,6.39085983,2768.0,2767.5,2.4862]
[1724601505191,1.51355286,2767.9,2767.5,2.4862]
[1724601506373,5.12641286,2767.9,2767.5,2.4862]
[1724601506585,5.12641286,2767.9,2767.3,0.68070172]
[1724601506586,1.26456697,2767.6,2767.3,2.3335]
[1724601507588,1.26456697,2767.6,2767.2,3.61365]
[1724601508861,2.77811983,2767.6,2767.1,2.3331]
[1724601509804,1.26456697,2767.6,2767.1,2.3331]
[1724601510190,1.26456697,2767.6,2767.1,5.94699]
[1724601510365,1.26456697,2767.6,2767.1,6.90308]
[1724601510993,4.87781697,2767.6,2767.1,3.28919]
[1724601511600,6.39136983,2767.6,2767.1,3.28919]
[1724601512102,6.39136983,2767.6,2767.4,2.3331]
[1724601512103,1.51355286,2767.6,2767.4,2.3331]
[1724601512264,1.88803858,2767.8,2767.4,2.3331]
[1724601512265,1.51355286,2767.8,2767.4,2.3331]
[1724601512667,5.12653286,2767.8,2767.4,2.3331]
[1724601515680,1.51355286,2767.8,2767.4,2.3331]
[1724601515889,1.51355286,2767.8,2767.5,0.956025]
[1724601516071,1.51355286,2767.9,2767.6,3.61322]
[1724601516800,1.51355286,2767.9,2767.5,3.61324]
[1724601517497,1.51355286,2767.9,2767.5,7.22651]
[1724601517699,1.51355286,2767.9,2767.5,3.61324]
[1724601518019,1.51355286,2767.9,2767.6,0.594634]
[1724601525821,5.12628286,2768.0,2767.6,0.594634]
[1724601526019,5.12628286,2768.0,2767.5,3.61324]
[1724601526204,1.51355286,2767.9,2767.5,3.61324]
[1724601526629,5.12628286,2768.0,2767.5,3.61324]
[1724601527905,1.51355286,2767.9,2767.5,3.61324]
[1724601528730,5.12628286,2768.0,2767.5,3.61324]
[1724601528958,1.51355286,2767.9,2767.5,3.61324]
[1724601529233,5.12628286,2768.0,2767.5,4.569232]
[1724601530402,1.51355286,2767.9,2767.5,4.569232]
[1724601530945,5.12628286,2768.0,2767.5,4.569232]
[1724601531487,1.51355286,2767.9,2767.5,4.569232]
[1724601534842,1.51355286,2767.9,2767.5,8.182522]
[1724601535157,1.51355286,2768.0,2767.7,7.34225697]
[1724601535438,8.97355286,2768.2,2767.9,3.61276]
[1724601535651,1.51355286,2768.3,2768.0,2.4647]
[1724601539292,1.51355286,2768.3,2768.0,3.072446]
[1724601540905,1.88833328,2768.4,2768.0,3.072446]
[1724601540906,1.51355286,2768.2,2768.0,3.072446]
[1724601541210,1.51355286,2768.3,2768.0,3.072446]
[1724601541430,1.51355286,2768.2,2768.0,3.072446]
[1724601541732,1.51355286,2768.3,2768.1,0.6685206]
[1724601541894,1.51355286,2768.3,2768.0,2.4647]
[1724601542906,1.51355286,2768.2,2768.0,2.4647]
[1724601543233,1.51355286,2768.3,2768.0,2.4647]
[1724601543398,1.51355286,2768.2,2768.0,2.4647]
[1724601543910,1.51355286,2768.3,2768.0,2.4647]
[1724601552855,2.77811983,2768.4,2768.0,2.4647]
[1724601553240,1.51355286,2768.3,2768.0,2.4647]
[1724601554080,2.77811983,2768.4,2768.0,2.4647]
[1724601554228,1.51355286,2768.3,2768.0,2.4647]
[1724601554630,2.77811983,2768.4,2768.0,2.4647]
[1724601555166,1.51355286,2768.3,2768.0,2.4647]
[1724601555360,2.77811983,2768.4,2768.0,2.4647]
[1724601555562,1.51355286,2768.3,2768.0,2.4647]
[1724601570758,1.51355286,2768.2,2768.0,2.4647]
[1724601572569,2.77811983,2768.2,2767.6,5.99018]
[1724601572776,2.77811983,2768.0,2767.6,5.99018]
[1724601574906,1.51355286,2768.0,2767.6,5.99018]
[1724601575263,1.51355286,2768.0,2767.7,3.6131]
[1724601575466,1.51355286,2768.1,2767.7,3.6131]
[1724601575978,1.51355286,2768.0,2767.7,3.6131]
[1724601580504,1.51355286,2767.9,2767.7,3.6131]
[1724601581070,1.51355286,2768.0,2767.9,3.61284]
[1724601581272,1.51355286,2768.0,2767.9,9.60268]
[1724601581586,1.51355286,2768.1,2768.0,3.61271]
[1724601583090,1.8891031,2768.2,2768.0,3.61271]
[1724601584127,1.88995842,2768.2,2768.0,3.61271]
[1724601584785,1.51205098,2768.1,2768.0,3.61271]
[1724601585309,1.88995842,2768.2,2768.0,3.61271]
[1724601585507,1.51203654,2768.1,2768.0,3.61271]
[1724601588329,1.51203654,2768.1,2768.0,7.824391]
[1724601588530,1.51203654,2768.2,2768.1,3.61258]
[1724601590333,1.51203654,2768.2,2768.0,3.6127]
[1724601590871,1.89004052,2768.4,2768.3,3.61232]
[1724601590872,1.51203654,2768.4,2768.3,3.61232]
[1724601591172,1.512306,2768.6,2768.5,3.61206]
[1724601591315,1.512306,2768.7,2768.5,6.10486]
[1724601592374,1.89037583,2768.9,2768.5,2.4928]
[1724601592375,1.512306,2768.8,2768.5,2.4928]
[1724601594624,1.512306,2768.9,2768.5,2.4928]
[1724601595167,1.512306,2768.9,2768.5,7.28214157]
[1724601599424,5.123716,2769.0,2768.5,7.28214157]
[1724601600692,5.12070608,2769.0,2768.5,7.28214157]
[1724601601375,1.50929608,2769.0,2768.5,7.28214157]
[1724601601577,1.50929608,2769.0,2768.6,0.72821416]
[1724601602865,5.12070608,2769.0,2768.6,0.72821416]
[1724601603529,1.50929608,2769.0,2768.6,4.34012416]
[1724601603925,1.50929608,2769.0,2768.7,3.8295967]
[1724601604258,1.50929608,2769.0,2768.7,3.75736697]
[1724601604570,1.50929608,2769.0,2768.8,4.42137911]
[1724601604940,1.50929608,2769.0,2768.9,1.26456697]
[1724601605147,1.50929608,2769.0,2768.9,3.75736697]
[1724601605595,1.50929608,2769.0,2768.9,7.36890697]
[1724601607363,1.804,2769.0,2768.9,7.36890697]
[1724601607534,1.804,2769.0,2768.9,8.54793158]
[1724601607736,1.804,2769.0,2768.9,12.15947158]
[1724601607981,1.804,2769.0,2768.9,12.70947158]
[1724601608632,1.804,2769.0,2768.9,11.44490461]
[1724601611851,1.804,2769.0,2768.9,12.70947158]
[1724601612471,1.804,2769.0,2768.9,11.44490461]
[1724601612788,1.804,2769.0,2768.9,1.17902461]
[1724601612932,1.804,2769.0,2768.8,3.61166]
[1724601613136,1.804,2769.0,2768.7,3.61174]
[1724601613459,1.26456697,2768.9,2768.3,3.61226]
[1724601613662,1.26456697,2768.7,2768.3,3.6123]
[1724601614294,2.2668,2768.6,2768.1,9.6689]
[1724601614480,2.2668,2768.6,2768.2,0.96689]
[1724601614638,2.2668,2768.6,2768.2,4.5793]
[1724601616674,2.2668,2768.6,2768.3,3.61231]
[1724601617058,1.26456697,2768.7,2768.3,3.61223]
[1724601618377,2.2668,2768.8,2768.3,3.61223]
[1724601618541,2.2668,2768.8,2768.4,3.61218]
[1724601618736,4.87610697,2768.9,2768.4,3.61218]
[1724601619438,7.02854982,2768.9,2768.4,3.61218]
[1724601620244,11.5308,2769.0,2768.4,7.22429]
[1724601620450,1.26456697,2768.9,2768.4,3.61211]
[1724601620861,2.2668,2768.6,2768.4,3.61211]
[1724601622185,1.26456697,2768.7,2768.4,3.61211]
[1724601622364,2.3063,2768.8,2768.4,3.61211]
[1724601623639,2.3063,2768.6,2768.2,3.6124]
[1724601625465,2.3063,2768.6,2768.2,7.22476]
[1724601625669,2.3063,2768.6,2768.2,3.61236]
[1724601625877,2.3063,2768.6,2768.2,7.22474]
[1724601626493,2.3063,2768.6,2768.3,3.61232]
[1724601627582,1.26456697,2768.7,2768.3,3.61232]
[1724601630341,1.26456697,2768.3,2767.9,3.61275]
[1724601630630,1.62657367,2768.3,2767.9,3.61275]
[1724601630781,1.26456697,2768.3,2767.9,3.61275]
[1724601631867,2.3555,2768.2,2767.7,3.61305]
[1724601632073,2.3555,2768.2,2767.8,3.61295]
[1724601633014,1.26456697,2768.3,2767.8,3.61295]
[1724601633213,1.26456697,2768.3,2767.8,4.33555]
[1724601637415,1.26456697,2768.3,2767.8,3.61295]
[1724601639091,1.26456697,2768.3,2767.8,5.92985]
[1724601640075,2.3555,2768.4,2767.9,3.61284]
[1724601640280,4.87671697,2768.5,2767.9,7.2256]
[1724601640519,3.61198,2768.6,2768.0,3.6127]
[1724601640696,13.84265848,2768.7,2768.1,3.039446]
[1724601641026,6.38265848,2768.7,2768.1,2.3169]
[1724601641314,6.38265848,2768.7,2768.1,5.92948]
[1724601641679,9.99455848,2768.7,2768.1,5.92948]
[1724601642108,6.38265848,2768.7,2768.1,5.92948]
[1724601642782,6.38265848,2768.7,2768.1,2.3169]
[1724601643008,6.38265848,2768.7,2767.9,7.22554]
[1724601643009,1.26456697,2768.5,2767.9,6.06717]
[1724601643427,1.26456697,2768.5,2768.0,3.61271]
[1724601644581,3.61208,2768.5,2768.0,3.61271]
[1724601645703,3.61208,2768.5,2767.9,2.4544]
[1724601646094,3.61208,2768.5,2767.9,6.06722]
[1724601646307,2.3769,2768.4,2767.6,4.87771697]
[1724601646632,1.26456697,2768.3,2767.6,6.06755]
[1724601646802,3.61247,2768.2,2767.6,6.06755]
[1724601647756,4.87699697,2768.3,2767.6,6.06755]
[1724601647922,4.87699697,2768.3,2767.7,0.606755]
[1724601648360,3.61243,2768.3,2767.7,0.606755]
[1724601648538,3.61243,2768.3,2767.7,4.219785]
[1724601649353,4.87699697,2768.3,2767.7,0.606755]
[1724601649577,3.52176697,2768.1,2767.6,3.61315]
[1724601650351,7.13437697,2768.1,2767.4,6.02048]
[1724601650523,3.61273,2768.0,2767.4,9.6339]
[1724601650724,7.13437697,2768.1,2767.5,0.96339]
[1724601651345,7.13437697,2768.1,2767.5,4.57673]
[1724601651780,1.26456697,2767.9,2767.5,3.61334]
[1724601653991,1.26456697,2767.9,2767.4,6.02048]
[1724601654938,7.13437697,2768.1,2767.5,3.61328]
[1724601655538,4.87717697,2768.1,2767.6,3.6132]
[1724601655736,8.64039848,2768.3,2767.7,6.02017]
[1724601655939,1.26456697,2768.3,2767.8,3.61289]
[1724601656957,4.87689697,2768.3,2767.7,2.4071]
[1724601657175,1.26456697,2768.1,2767.7,2.4071]
[1724601658593,3.61248,2768.2,2767.7,2.4071]
[1724601658800,6.38313848,2768.3,2767.7,2.4071]
[1724601658954,4.87689697,2768.3,2767.7,2.4071]
[1724601659286,4.87689697,2768.3,2767.7,6.02011]
[1724601659435,4.87689697,2768.3,2767.7,6.57727408]
[1724601660086,6.38313848,2768.3,2767.7,6.57727408]
[1724601660293,2.77080848,2768.3,2767.7,6.57727408]
[1724601660449,4.87698697,2768.3,2767.7,6.57727408]
[1724601660838,6.38322848,2768.3,2767.7,2.96426408]
[1724601661690,6.38322848,2768.3,2767.8,0.65773841]
[1724601661888,4.87698697,2768.3,2767.8,0.65773841]
[1724601662445,6.38322848,2768.3,2767.8,0.65773841]
[1724601662686,1.50624151,2768.4,2768.0,1.26456697]
[1724601662882,1.50624151,2768.6,2768.2,3.61237]
[1724601663111,1.50624151,2768.6,2768.3,2.4926]
[1724601663241,3.61155,2768.9,2768.7,2.4926]
[1724601663242,1.50624151,2768.9,2768.7,2.4926]
[1724601663441,1.804,2769.0,2768.7,2.4926]
[1724601664440,1.804,2769.0,2768.6,3.61193]
[1724601664693,1.804,2769.0,2768.6,4.7100537]
[1724601665244,1.804,2769.0,2768.7,3.61179]
[1724601666687,1.804,2769.0,2768.8,2.4926]
[1724601668406,1.804,2769.0,2768.8,6.10425]
[1724601668556,1.804,2769.0,2768.8,2.4926]
[1724601668904,1.804,2769.0,2768.9,4.221979]
[1724601674221,1.804,2769.0,2768.9,7.9057446]
[1724601674372,1.804,2769.0,2768.9,10.779519]
[1724601674569,1.804,2769.0,2768.9,14.391059]
[1724601680499,1.804,2769.0,2768.9,17.391059]
[1724601686339,1.804,2769.0,2768.9,21.002599]
[1724601692292,2.2629,2770.2,2770.0,3.61008]
[1724601692450,2.2629,2770.2,2770.1,0.361008]
[1724601692658,2.2629,2770.2,2770.0,3.61008]
[1724601693774,2.3261,2770.5,2770.2,3.60983]
[1724601694389,2.3261,2770.8,2770.7,3.60919]
[1724601694615,11.0782,2771.5,2770.9,3.60892]
[1724601694616,2.3261,2771.0,2770.9,3.60892]
[1724601694775,2.3261,2771.2,2771.1,3.60867]
[1724601695093,2.3261,2771.2,2771.1,1.26456697]
[1724601695297,2.3261,2771.2,2770.9,4.87349697]
[1724601695982,2.3261,2771.2,2770.9,8.48233697]
[1724601696177,2.3261,2771.2,2771.1,3.60867]
[1724601696555,2.3261,2771.2,2770.9,5.72164067]
[1724601697295,2.3261,2771.2,2771.0,3.60871]
[1724601697493,2.3261,2771.2,2771.1,3.60867]
[1724601697676,2.3261,2771.4,2771.1,7.21734]
[1724601698204,2.3261,2771.4,2771.2,3.60852]
[1724601698558,2.3261,2771.4,2771.0,3.6087]
[1724601698896,2.3261,2771.4,2771.0,4.41527937]
[1724601699096,2.3261,2771.4,2771.1,3.60865]
[1724601700094,2.3261,2771.4,2771.0,0.80657937]
[1724601700565,2.3261,2771.4,2770.9,3.60885]
[1724601700754,2.3261,2771.4,2770.9,7.2177]
[1724601701168,2.3261,2771.4,2770.9,3.60885]
[1724601702861,2.3261,2771.4,2771.0,3.60879]
[1724601705818,2.3261,2771.4,2770.9,7.21768]
[1724601706022,2.3261,2771.4,2770.9,3.60884]
[1724601706191,2.3261,2771.4,2770.9,7.21769]
[1724601707217,2.3261,2771.4,2771.0,3.60879]
[1724601710222,2.3261,2771.4,2770.9,7.21769]
[1724601710423,2.3261,2771.4,2770.9,3.60884]
[1724601712134,2.3261,2771.4,2770.9,7.21769]
[1724601712703,2.3261,2771.4,2771.0,3.60874]
[1724601714798,2.3315,2772.1,2771.7,3.60789]
[1724601714997,2.3315,2772.1,2771.6,3.60796]
[1724601715229,2.3315,2772.0,2771.4,3.6082]
[1724601715430,2.3315,2772.0,2771.4,7.21639]
[1724601715639,2.3315,2772.0,2771.1,3.60859]
[1724601715934,2.3315,2772.0,2771.7,3.60786]
[1724601716145,2.3315,2772.0,2771.2,1.147359]
[1724601716146,2.3315,2772.0,2771.5,3.60805]
[1724601717345,2.3315,2772.0,2771.6,3.60794]
[1724601718020,2.3315,2772.0,2771.7,3.60787]
[1724601720125,2.3315,2772.0,2771.5,3.60804]
[1724601721066,2.3315,2772.0,2771.6,3.60793]
[1724601721378,2.3315,2772.0,2771.7,3.60787]
[1724601721711,2.3315,2772.0,2771.8,3.60776]
[1724601721953,2.3868,2772.2,2771.9,3.60763]
[1724601722658,2.3868,2772.2,2772.0,3.60741]
[1724601723361,2.3868,2772.2,2771.9,3.60763]
[1724601724018,7.4,2772.3,2772.0,3.60749]
[1724601724316,7.4,2772.3,2771.9,3.60763]
[1724601725553,2.3868,2772.2,2771.9,3.60763]
[1724601726451,2.3868,2772.2,2771.9,7.21518]
[1724601726656,7.4,2772.3,2771.9,7.21518]
[1724601727157,2.3868,2772.4,2771.9,7.21518]
[1724601728254,2.3868,2772.4,2771.9,3.60755]
[1724601732868,2.3868,2772.4,2772.0,3.6075]
[1724601733269,9.6396,2772.7,2772.1,3.60734]
[1724601733478,2.3396,2772.7,2772.1,3.60734]
[1724601733622,2.3396,2772.7,2772.2,3.60714]
[1724601733824,5.9462,2772.7,2772.1,3.60734]
[1724601734021,5.9462,2772.7,2772.1,7.21462]
[1724601734423,5.9462,2772.7,2772.1,3.60728]
[1724601734636,5.9462,2772.7,2772.1,7.21456]
[1724601734918,2.3396,2772.7,2772.2,3.60723]
[1724601736225,3.664213,2772.7,2772.2,3.60723]
[1724601736428,2.3396,2772.6,2771.9,3.60755]
[1724601736621,2.3396,2772.0,2770.5,12.26]
[1724601736819,3.02591748,2772.2,2771.2,3.60846]
[1724601736820,2.3396,2771.7,2771.2,3.60846]